fUST/lending_fUST_20250207
["ID","MTS","AMOUNT","RATE_DAILY","PERIOD"]
[352080917,1738939840471,-553.49919283,0.00012476,2]
[352080918,1738939840484,-500.71530683,0.00012476,2]
[352080919,1738939840494,-500.0,0.00012476,2]
[352080920,1738939840503,-500.0,0.00012476,2]
[352080921,1738939840516,-502.50025769,0.00012476,2]
[352080922,1738939840528,-500.0,0.00012476,2]
[352080923,1738939840537,-500.0,0.00012476,2]
[352080924,1738939840546,-502.88663421,0.00012476,2]
[352080926,1738939840556,-500.0,0.00012476,2]
[352080928,1738939840566,-500.0,0.00012476,2]
[352080930,1738939840575,-500.0,0.00012476,2]
[352080932,1738939840584,-500.0,0.00012476,2]
[352080934,1738939840593,-515.13833456,0.00012476,2]
[352080936,1738939840604,-502.07044711,0.00012476,2]
[352080938,1738939840613,-500.0,0.00012476,2]
[352080940,1738939840622,-500.84391151,0.00012476,2]
[352080942,1738939840632,-372.11094596,0.00012476,2]
[352080944,1738939840642,-500.0,0.00012476,2]
[352080946,1738939840651,-500.0,0.00012476,2]
[352080948,1738939840660,-500.00000001,0.00012476,2]
[352080950,1738939840670,-500.0,0.00012476,2]
[352080952,1738939840680,-500.0,0.00012476,2]
[352080954,1738939840688,-552.3303911,0.00012476,2]
[352080956,1738939840698,-500.0,0.00012476,2]
[352080958,1738939840707,-500.0,0.00012476,2]
[352080959,1738939840717,-500.0,0.00012476,2]
[352080961,1738939840730,-500.0,0.00012476,2]
[352080963,1738939840740,-500.0,0.00012476,2]
[352080965,1738939840749,-500.0,0.00012476,2]
[352080967,1738939840759,-574.55,0.00012476,2]
[352080969,1738939840770,-500.0,0.00012476,2]
[352080971,1738939840781,-500.0,0.00012516,2]
[352080973,1738939840790,-500.0,0.00012516,2]
[352080975,1738939840800,-500.0,0.00012516,2]
[352080977,1738939840811,-8151.41,0.00012516,2]
[352080979,1738939840820,-500.0,0.00012516,2]
[352080981,1738939840830,-500.0,0.00012516,2]
[352080983,1738939840840,-500.0,0.00012516,2]
[352080985,1738939840850,-553.1,0.00012516,2]
[352080987,1738939840859,-500.0,0.00012516,2]
[352080989,1738939840869,-500.0,0.00012516,2]
[352080991,1738939840878,-752.17,0.00012516,2]
[352080993,1738939840888,-500.0,0.00012516,2]
[352080995,1738939840897,-500.0,0.00012516,2]
[352080997,1738939840907,-839.75,0.00012516,2]
[352080999,1738939840916,-344.26257899,0.00012516,2]
[352081001,1738939840925,-500.0,0.00012516,2]
[352081003,1738939840935,-1388.38,0.00012516,2]
[352081005,1738939840944,-500.0,0.00012516,2]
[352081007,1738939840953,-500.0,0.00012516,2]
[352081009,1738939840963,-500.0,0.00012516,2]
[352081011,1738939840972,-500.0,0.00012516,2]
[352081013,1738939840986,-526.13,0.00012516,2]
[352081015,1738939840996,-500.0,0.00012516,2]
[352081018,1738939841005,-500.0,0.00012516,2]
[352081019,1738939841014,-500.0,0.00012516,2]
[352081022,1738939841023,-500.0,0.00012516,2]
[352081023,1738939841033,-7053.3,0.00012516,2]
[352081026,1738939841043,-500.0,0.00012516,2]
[352081028,1738939841056,-500.0,0.00012516,2]
[352081030,1738939841065,-500.0,0.00012516,2]
[352081032,1738939841075,-500.0,0.00012516,2]
[352081034,1738939841085,-500.0,0.00012516,2]
[352081036,1738939841094,-19230.22,0.00012516,2]
[352081038,1738939841103,-524.36986768,0.00012516,2]
[352081040,1738939841113,-500.0,0.00012516,2]
[352081042,1738939841123,-500.0,0.00012516,2]
[352081043,1738939841133,-500.0,0.00012516,2]
[352081045,1738939841144,-1012.17,0.00012516,2]
[352081047,1738939841153,-1006.8,0.00012516,2]
[352081050,1738939841163,-500.0,0.00012516,2]
[352081052,1738939841171,-500.0,0.00012516,2]
[352081054,1738939841181,-500.0,0.00012516,2]
[352081056,1738939841190,-500.0,0.00012516,2]
[352081057,1738939841199,-500.0,0.00012516,2]
[352081059,1738939841209,-500.0,0.00012516,2]
[352081061,1738939841219,-500.0,0.00012516,2]
[352081064,1738939841232,-500.0,0.00012516,2]
[352081066,1738939841242,-768.24,0.00012516,2]
[352081067,1738939841251,-500.0,0.00012516,2]
[352081070,1738939841261,-500.0,0.00012516,2]
[352081072,1738939841270,-500.0,0.00012516,2]
[352081073,1738939841279,-4309.11,0.00012516,2]
[352081076,1738939841289,-500.0,0.00012516,2]
[352081078,1738939841299,-500.0,0.00012516,2]
[352081080,1738939841309,-500.0,0.00012516,2]
[352081081,1738939841318,-1666.0,0.00012516,2]
[352081084,1738939841327,-1695.49,0.00012516,2]
[352081086,1738939841337,-500.0,0.00012516,2]
[352081088,1738939841346,-39752.58,0.00012516,2]
[352081090,1738939841356,-518.61192203,0.00012516,2]
[352081091,1738939841365,-500.0,0.00012516,2]
[352081093,1738939841375,-1978.37,0.00012516,2]
[352081096,1738939841384,-335.81725781,0.00012516,2]
[352081098,1738939841394,-500.0,0.00012516,2]
[352081100,1738939841403,-500.0,0.00012516,2]
[352081102,1738939841412,-500.0,0.00012516,2]
[352081104,1738939841422,-500.0,0.00012516,2]
[352081106,1738939841433,-500.0,0.00012516,2]
[352081108,1738939841442,-500.0,0.00012516,2]
[352081110,1738939841452,-500.0,0.00012516,2]
[352081112,1738939841462,-500.0,0.00012516,2]
[352081114,1738939841472,-500.0,0.00012516,2]
[352081116,1738939841485,-1408.44,0.00012516,2]
[352081118,1738939841495,-1867.69,0.00012516,2]
[352081120,1738939841504,-1861.87,0.00012516,2]
[352081122,1738939841514,-904.43,0.00012516,2]
[352081124,1738939841523,-500.0,0.00012516,2]
[352081126,1738939841533,-500.0,0.00012516,2]
[352081128,1738939841542,-500.0,0.00012516,2]
[352081130,1738939841552,-500.90956825,0.00012516,2]
[352081140,1738939841641,-500.0,0.00012516,2]
[352081142,1738939841651,-500.0,0.00012516,2]
[352081144,1738939841662,-884.8,0.00012516,2]
[352081146,1738939841672,-500.0,0.00012516,2]
[352081148,1738939841681,-500.0,0.00012516,2]
[352081150,1738939841691,-500.0,0.00012516,2]
[352081153,1738939841700,-500.0,0.00012516,2]
[352081154,1738939841710,-936.48,0.00012516,2]
[352081156,1738939841719,-502.35564316,0.00012516,2]
[352081159,1738939841731,-500.0,0.00012516,2]
[352081160,1738939841742,-500.0,0.00012516,2]
[352081163,1738939841752,-500.0,0.00012516,2]
[352081165,1738939841762,-500.0,0.00012516,2]
[352081167,1738939841771,-500.0,0.00012516,2]
[352081169,1738939841780,-8591.22,0.00012516,2]
[352081171,1738939841790,-500.0,0.00012516,2]
[352081173,1738939841799,-1337.52,0.00012516,2]
[352081175,1738939841808,-500.0,0.00012516,2]
[352081177,1738939841817,-500.0,0.00012516,2]
[352081179,1738939841826,-500.0,0.00012516,2]
[352081181,1738939841835,-500.0,0.00012516,2]
[352081183,1738939841845,-500.0,0.00012516,2]
[352081185,1738939841854,-500.0,0.00012516,2]
[352081187,1738939841864,-500.0,0.00012516,2]
[352081189,1738939841873,-518.18,0.00012516,2]
[352081191,1738939841883,-500.0,0.00012516,2]
[352081193,1738939841892,-500.0,0.00012516,2]
[352081195,1738939841902,-500.0,0.00012516,2]
[352081197,1738939841911,-500.0,0.00012516,2]
[352081199,1738939841921,-500.0,0.00012516,2]
[352081201,1738939841930,-602.43,0.00012516,2]
[352081203,1738939841939,-500.0,0.00012516,2]
[352081205,1738939841949,-1955.19,0.00012516,2]
[352081207,1738939841959,-500.0,0.00012516,2]
[352081209,1738939841968,-500.0,0.00012516,2]
[352081211,1738939841979,-500.0,0.00012516,2]
[352081213,1738939841988,-500.0,0.00012516,2]
[352081215,1738939841997,-500.0,0.00012516,2]
[352081217,1738939842006,-500.0,0.00012516,2]
[352081219,1738939842016,-500.0,0.00012516,2]
[352081221,1738939842025,-500.0,0.00012516,2]
[352081223,1738939842034,-599.82,0.00012516,2]
[352081225,1738939842048,-253.85462324,0.00012516,2]
[352081227,1738939842057,-503.78761386,0.00012516,2]
[352081229,1738939842067,-500.0,0.00012516,2]
[352081231,1738939842076,-665.61,0.00012516,2]
[352081233,1738939842085,-500.0,0.00012516,2]
[352081235,1738939842094,-500.0,0.00012516,2]
[352081237,1738939842103,-500.0,0.00012516,2]
[352081239,1738939842112,-708.43,0.00012516,2]
[352081241,1738939842122,-500.0,0.00012516,2]
[352081243,1738939842132,-500.0,0.00012516,2]
[352081245,1738939842141,-833.25,0.00012516,2]
[352081247,1738939842151,-500.78769309,0.00012516,2]
[352081249,1738939842161,-500.0,0.00012516,2]
[352081251,1738939842170,-500.0,0.00012516,2]
[352081253,1738939842179,-500.0,0.00012516,2]
[352081255,1738939842188,-11556.96,0.00012516,2]
[352081257,1738939842197,-500.0,0.00012516,2]
[352081259,1738939842207,-500.0,0.00012516,2]
[352081261,1738939842216,-500.0,0.00012516,2]
[352081263,1738939842225,-500.0,0.00012516,2]
[352081265,1738939842236,-500.0,0.00012516,2]
[352081267,1738939842245,-500.0,0.00012516,2]
[352081269,1738939842254,-3586.98,0.00012516,2]
[352081271,1738939842264,-501.30723013,0.00012516,2]
[352081273,1738939842273,-500.0,0.00012516,2]
[352081275,1738939842282,-500.0,0.00012516,2]
[352081277,1738939842291,-500.0,0.00012516,2]
[352081279,1738939842300,-500.0,0.00012516,2]
[352081281,1738939842309,-500.0,0.00012516,2]
[352081283,1738939842318,-500.0,0.00012516,2]
[352081285,1738939842327,-744.17,0.00012516,2]
[352081287,1738939842337,-500.0,0.00012516,2]
[352081289,1738939842347,-500.0,0.00012516,2]
[352081291,1738939842356,-511.96549082,0.00012516,2]
[352081293,1738939842365,-501.45324605,0.00012516,2]
[352081295,1738939842375,-500.0,0.00012516,2]
[352081297,1738939842383,-500.0,0.00012516,2]
[352081299,1738939842393,-500.0,0.00012516,2]
[352081301,1738939842403,-601.79,0.00012516,2]
[352081303,1738939842412,-360.08552729,0.00012516,2]
[352081305,1738939842422,-500.0,0.00012516,2]
[352081307,1738939842431,-500.0,0.00012516,2]
[352081309,1738939842440,-500.0,0.00012516,2]
[352081311,1738939842450,-500.0,0.00012516,2]
[352081313,1738939842459,-1564.15,0.00012516,2]
[352081315,1738939842468,-686.26,0.00012516,2]
[352081317,1738939842478,-603.74057308,0.00012516,2]
[352081319,1738939842488,-500.0,0.00012516,2]
[352081321,1738939842498,-500.0,0.00012516,2]
[352081323,1738939842507,-500.0,0.00012516,2]
[352081325,1738939842516,-500.0,0.00012516,2]
[352081327,1738939842526,-500.0,0.00012516,2]
[352081329,1738939842535,-500.0,0.00012516,2]
[352081331,1738939842544,-500.0,0.00012516,2]
[352081333,1738939842556,-500.0,0.00012516,2]
[352081335,1738939842566,-5082.18,0.00012516,2]
[352081337,1738939842575,-500.0,0.00012516,2]
[352081339,1738939842585,-519.96222351,0.00012516,2]
[352081341,1738939842594,-14606.37,0.00012516,2]
[352081343,1738939842604,-500.0,0.00012516,2]
[352081345,1738939842614,-505.03528444,0.00012516,2]
[352081348,1738939842623,-500.0,0.00012516,2]
[352081350,1738939842633,-730.46,0.00012516,2]
[352081352,1738939842642,-500.0,0.00012516,2]
[352081354,1738939842651,-500.0,0.00012516,2]
[352081356,1738939842661,-500.0,0.00012516,2]
[352081358,1738939842670,-500.0,0.00012516,2]
[352081360,1738939842680,-1329.3,0.00012516,2]
[352081362,1738939842689,-500.0,0.00012516,2]
[352081364,1738939842699,-500.0,0.00012516,2]
[352081366,1738939842708,-500.94872625,0.00012516,2]
[352081368,1738939842717,-151.0,0.00012516,2]
[352081370,1738939842726,-609.28,0.00012516,2]
[352081372,1738939842737,-151.0,0.00012516,2]
[352081374,1738939842747,-500.0,0.00012516,2]
[352081376,1738939842756,-4521.66,0.00012516,2]
[352081378,1738939842766,-500.0,0.00012516,2]
[352081380,1738939842775,-500.0,0.00012516,2]
[352081382,1738939842785,-500.0,0.00012516,2]
[352081384,1738939842794,-215.70464468,0.00012516,2]
[352081386,1738939842803,-1030.52,0.00012516,2]
[352081388,1738939842812,-954.97,0.00012516,2]
[352081390,1738939842822,-500.0,0.00012516,2]
[352081392,1738939842832,-500.0,0.00012516,2]
[352081394,1738939842841,-155.41051446,0.00012516,2]
[352081396,1738939842851,-500.0,0.00012516,2]
[352081398,1738939842861,-273.1301435,0.00012516,2]
[352081400,1738939842870,-500.0,0.00012516,2]
[352081402,1738939842880,-500.0,0.00012516,2]
[352081404,1738939842890,-500.0,0.00012516,2]
[352081406,1738939842899,-500.0,0.00012516,2]
[352081408,1738939842909,-500.0,0.00012516,2]
[352081410,1738939842918,-500.0,0.00012516,2]
[352081412,1738939842927,-500.0,0.00012516,2]
[352081414,1738939842937,-500.0,0.00012516,2]
[352081416,1738939842947,-512.04050851,0.00012516,2]
[352081418,1738939842955,-4638.47,0.00012516,2]
[352081420,1738939842965,-500.0,0.00012516,2]
[352081422,1738939842974,-500.0,0.00012516,2]
[352081425,1738939842985,-500.0,0.00012516,2]
[352081427,1738939842994,-500.0,0.00012516,2]
[352081430,1738939843081,-500.0,0.00012516,2]
[352081431,1738939843091,-2062.77,0.00012516,2]
[352081432,1738939843101,-500.0,0.00012516,2]
[352081433,1738939843111,-500.0,0.00012516,2]
[352081434,1738939843120,-500.0,0.00012516,2]
[352081437,1738939843129,-500.0,0.00012516,2]
[352081440,1738939843138,-500.0,0.00012516,2]
[352081443,1738939843148,-500.0,0.00012516,2]
[352081446,1738939843158,-500.0,0.00012516,2]
[352081449,1738939843168,-500.0,0.00012516,2]
[352081454,1738939843178,-626.73,0.00012516,2]
[352081458,1738939843188,-500.0,0.00012516,2]
[352081462,1738939843198,-500.0,0.00012516,2]
[352081464,1738939843207,-526.24299858,0.00012516,2]
[352081466,1738939843217,-500.0,0.00012516,2]
[352081469,1738939843226,-500.0,0.00012612,2]
[352081472,1738939843239,-500.0,0.00012612,2]
[352081474,1738939843249,-6228.14,0.00012612,2]
[352081476,1738939843259,-2395.44,0.00012612,2]
[352081478,1738939843268,-169.02,0.00012612,2]
[352081480,1738939843278,-602.67420308,0.00012612,2]
[352081482,1738939843288,-500.0,0.00012612,2]
[352081484,1738939843297,-501.26972316,0.00012613,2]
[352081486,1738939843306,-500.0,0.00012613,2]
[352081488,1738939843316,-500.95318435,0.00012613,2]
[352081490,1738939843325,-500.0,0.00012613,2]
[352081492,1738939843335,-478.75719505,0.00012613,2]
[352081494,1738939843344,-500.0,0.00012613,2]
[352081496,1738939843353,-500.0,0.00012613,2]
[352081498,1738939843362,-673.13,0.00012613,2]
[352081500,1738939843372,-500.0,0.00012613,2]
[352081502,1738939843381,-500.0,0.00012613,2]
[352081504,1738939843390,-500.0,0.00012613,2]
[352081506,1738939843399,-500.0,0.00012613,2]
[352081508,1738939843409,-510.29593004,0.00012613,2]
[352081510,1738939843420,-500.0,0.00012613,2]
[352081512,1738939843430,-500.0,0.00012613,2]
[352081514,1738939843439,-500.0,0.00012613,2]
[352081516,1738939843448,-426.52110053,0.00012613,2]
[352081518,1738939843458,-500.0,0.00012613,2]
[352081520,1738939843467,-500.0,0.00012613,2]
[352081522,1738939843476,-500.0,0.00012613,2]
[352081524,1738939843489,-500.0,0.00012613,2]
[352081526,1738939843498,-500.0,0.00012613,2]
[352081528,1738939843507,-623.2,0.00012613,2]
[352081530,1738939843516,-500.0,0.00012613,2]
[352081532,1738939843526,-500.0,0.00012613,2]
[352081534,1738939843534,-574.55,0.00012613,2]
[352081536,1738939843544,-151.0,0.00012613,2]
[352081538,1738939843554,-500.0,0.00012653,2]
[352081540,1738939843564,-520.68537401,0.00012653,2]
[352081542,1738939843573,-500.0,0.00012653,2]
[352081544,1738939843583,-8151.41,0.00012653,2]
[352081546,1738939843592,-500.0,0.00012653,2]
[352081548,1738939843602,-500.0,0.00012653,2]
[352081550,1738939843610,-500.0,0.00012653,2]
[352081552,1738939843620,-553.1,0.00012653,2]
[352081554,1738939843629,-500.0,0.00012653,2]
[352081555,1738939843638,-500.0,0.00012653,2]
[352081558,1738939843648,-752.17,0.00012653,2]
[352081559,1738939843658,-500.52929669,0.00012653,2]
[352081562,1738939843668,-839.75,0.00012653,2]
[352081564,1738939843677,-234.00005682,0.00012653,2]
[352081566,1738939843687,-500.0,0.00012653,2]
[352081568,1738939843696,-1388.38,0.00012653,2]
[352081570,1738939843706,-500.0,0.00012653,2]
[352081572,1738939843715,-500.0,0.00012653,2]
[352081574,1738939843725,-500.0,0.00012653,2]
[352081576,1738939843737,-500.0,0.00012653,2]
[352081578,1738939843746,-526.13,0.00012653,2]
[352081581,1738939843755,-500.0,0.00012653,2]
[352081583,1738939843765,-500.0,0.00012653,2]
[352081586,1738939843775,-589.42942773,0.00012653,2]
[352081588,1738939843784,-500.0,0.00012653,2]
[352081590,1738939843793,-500.0,0.00012653,2]
[352081592,1738939843803,-368.11559736,0.00012653,2]
[352081595,1738939843813,-500.0,0.00012653,2]
[352081596,1738939843822,-539.2434124,0.00012653,2]
[352081598,1738939843832,-19230.22,0.00012653,2]
[352081601,1738939843842,-500.0,0.00012653,2]
[352081602,1738939843851,-500.46919573,0.00012653,2]
[352081605,1738939843860,-500.0,0.00012653,2]
[352081606,1738939843870,-1012.17,0.00012653,2]
[352081609,1738939843879,-1006.8,0.00012653,2]
[352081611,1738939843888,-500.0,0.00012653,2]
[352081613,1738939843898,-500.0,0.00012653,2]
[352081615,1738939843907,-500.0,0.00012653,2]
[352081617,1738939843916,-509.04549237,0.00012653,2]
[352081619,1738939843926,-500.0,0.00012653,2]
[352081621,1738939843935,-500.0,0.00012653,2]
[352081623,1738939843945,-500.0,0.00012653,2]
[352081625,1738939843954,-500.0,0.00012653,2]
[352081627,1738939843964,-500.0,0.00012653,2]
[352081629,1738939843973,-768.24,0.00012653,2]
[352081631,1738939843984,-500.0,0.00012653,2]
[352081633,1738939843993,-500.0,0.00012653,2]
[352081635,1738939844003,-4309.11,0.00012653,2]
[352081636,1738939844012,-500.0,0.00012653,2]
[352081638,1738939844021,-500.0,0.00012653,2]
[352081641,1738939844031,-500.0,0.00012653,2]
[352081642,1738939844044,-1666.0,0.00012653,2]
[352081644,1738939844054,-1695.49,0.00012653,2]
[352081647,1738939844064,-500.0,0.00012653,2]
[352081648,1738939844074,-39752.58,0.00012653,2]
[352081650,1738939844085,-500.0,0.00012653,2]
[352081653,1738939844094,-1978.37,0.00012653,2]
[352081655,1738939844103,-500.0,0.00012653,2]
[352081656,1738939844113,-500.0,0.00012653,2]
[352081658,1738939844122,-500.0,0.00012653,2]
[352081661,1738939844133,-500.0,0.00012653,2]
[352081663,1738939844142,-500.0,0.00012653,2]
[352081665,1738939844151,-500.0,0.00012653,2]
[352081667,1738939844161,-500.0,0.00012653,2]
[352081669,1738939844170,-500.0,0.00012653,2]
[352081671,1738939844179,-1867.69,0.00012653,2]
[352081673,1738939844189,-1861.87,0.00012653,2]
[352081675,1738939844199,-904.43,0.00012653,2]
[352081677,1738939844208,-500.0,0.00012653,2]
[352081679,1738939844218,-500.0,0.00012653,2]
[352081681,1738939844230,-500.0,0.00012653,2]
[352081683,1738939844239,-500.0,0.00012653,2]
[352081685,1738939844248,-500.0,0.00012653,2]
[352081687,1738939844257,-884.8,0.00012653,2]
[352081689,1738939844266,-500.0,0.00012653,2]
[352081691,1738939844275,-500.0,0.00012653,2]
[352081693,1738939844285,-500.0,0.00012653,2]
[352081694,1738939844294,-606.56750431,0.00012653,2]
[352081697,1738939844303,-936.48,0.00012653,2]
[352081699,1738939844313,-500.0,0.00012653,2]
[352081701,1738939844322,-500.0,0.00012653,2]
[352081703,1738939844332,-500.0,0.00012653,2]
[352081711,1738939844341,-500.0,0.00012653,2]
[352081713,1738939844422,-500.0,0.00012653,2]
[352081715,1738939844431,-8591.22,0.00012653,2]
[352081717,1738939844440,-500.0,0.00012653,2]
[352081719,1738939844450,-1337.52,0.00012653,2]
[352081721,1738939844459,-500.0,0.00012653,2]
[352081723,1738939844469,-500.0,0.00012653,2]
[352081725,1738939844480,-561.48157875,0.00012653,2]
[352081727,1738939844490,-500.0,0.00012653,2]
[352081729,1738939844499,-500.0,0.00012653,2]
[352081731,1738939844508,-500.0,0.00012653,2]
[352081733,1738939844518,-518.18,0.00012653,2]
[352081735,1738939844527,-500.0,0.00012653,2]
[352081737,1738939844537,-500.0,0.00012653,2]
[352081739,1738939844547,-500.0,0.00012653,2]
[352081741,1738939844556,-500.0,0.00012653,2]
[352081743,1738939844566,-500.0,0.00012653,2]
[352081745,1738939844576,-602.43,0.00012653,2]
[352081747,1738939844585,-500.0,0.00012653,2]
[352081749,1738939844594,-1955.19,0.00012653,2]
[352081751,1738939844603,-493.24649263,0.00012653,2]
[352081754,1738939844613,-500.0,0.00012653,2]
[352081756,1738939844623,-500.0,0.00012653,2]
[352081757,1738939844632,-500.0,0.00012653,2]
[352081759,1738939844641,-500.0,0.00012653,2]
[352081762,1738939844651,-500.0,0.00012653,2]
[352081763,1738939844660,-500.0,0.00012653,2]
[352081765,1738939844669,-599.82,0.00012653,2]
[352081767,1738939844679,-665.61,0.00012653,2]
[352081769,1738939844689,-500.0,0.00012653,2]
[352081771,1738939844699,-500.0,0.00012653,2]
[352081773,1738939844708,-500.0,0.00012653,2]
[352081776,1738939844717,-708.43,0.00012653,2]
[352081778,1738939844729,-219.63500113,0.00012653,2]
[352081780,1738939844738,-500.0,0.00012653,2]
[352081782,1738939844747,-833.25,0.00012653,2]
[352081784,1738939844756,-500.0,0.00012653,2]
[352081786,1738939844765,-500.0,0.00012653,2]
[352081788,1738939844775,-500.0,0.00012653,2]
[352081790,1738939844785,-11556.96,0.00012653,2]
[352081792,1738939844794,-500.0,0.00012653,2]
[352081794,1738939844803,-500.0,0.00012653,2]
[352081795,1738939844812,-500.0,0.00012653,2]
[352081797,1738939844821,-500.0,0.00012653,2]
[352081799,1738939844830,-500.0,0.00012653,2]
[352081801,1738939844839,-500.0,0.00012653,2]
[352081803,1738939844849,-3586.98,0.00012653,2]
[352081805,1738939844858,-510.81051585,0.00012653,2]
[352081807,1738939844868,-500.0,0.00012653,2]
[352081809,1738939844877,-500.0,0.00012653,2]
[352081811,1738939844887,-500.0,0.00012653,2]
[352081813,1738939844897,-500.0,0.00012653,2]
[352081815,1738939844907,-744.17,0.00012653,2]
[352081817,1738939844916,-426.99459517,0.00012653,2]
[352081819,1738939844925,-500.0,0.00012653,2]
[352081821,1738939844934,-500.0,0.00012653,2]
[352081823,1738939844944,-500.0,0.00012653,2]
[352081825,1738939844954,-500.0,0.00012653,2]
[352081827,1738939844963,-151.0,0.00012653,2]
[352081829,1738939844972,-151.0,0.00012653,2]
[352081831,1738939844983,-172.101189,0.00012653,2]
[352081834,1738939844992,-791.342435,0.00012653,2]
[352081836,1738939845002,-601.79,0.00012653,2]
[352081838,1738939845011,-791.342435,0.00012653,2]
[352081840,1738939845020,-791.342435,0.00012653,2]
[352081842,1738939845031,-500.0,0.00012653,2]
[352081844,1738939845041,-500.0,0.00012653,2]
[352081846,1738939845055,-500.0,0.00012653,2]
[352081848,1738939845064,-500.0,0.00012653,2]
[352081850,1738939845074,-1564.15,0.00012653,2]
[352081852,1738939845083,-791.342435,0.00012653,2]
[352081854,1738939845092,-686.26,0.00012653,2]
[352081856,1738939845102,-500.0,0.00012653,2]
[352081858,1738939845111,-791.342435,0.00012653,2]
[352081860,1738939845120,-791.342435,0.00012653,2]
[352081862,1738939845130,-500.0,0.00012653,2]
[352081864,1738939845140,-500.0,0.00012653,2]
[352081866,1738939845150,-500.0,0.00012653,2]
[352081868,1738939845159,-500.0,0.00012653,2]
[352081870,1738939845169,-500.0,0.00012653,2]
[352081872,1738939845178,-500.0,0.00012653,2]
[352081874,1738939845187,-500.0,0.00012653,2]
[352081876,1738939845197,-5082.18,0.00012653,2]
[352081878,1738939845207,-500.0,0.00012653,2]
[352081880,1738939845216,-14606.37,0.00012653,2]
[352081882,1738939845226,-500.0,0.00012653,2]
[352081884,1738939845239,-500.0,0.00012653,2]
[352081886,1738939845248,-730.46,0.00012653,2]
[352081888,1738939845258,-500.0,0.00012653,2]
[352081890,1738939845267,-500.0,0.00012653,2]
[352081892,1738939845277,-500.0,0.00012653,2]
[352081894,1738939845285,-500.0,0.00012653,2]
[352081896,1738939845294,-1329.3,0.00012653,2]
[352081897,1738939845304,-293.741913,0.00012653,2]
[352081899,1738939845313,-293.741913,0.00012653,2]
[352081901,1738939845322,-293.741913,0.00012653,2]
[352081904,1738939845332,-500.0,0.00012653,2]
[352081906,1738939845342,-500.0,0.00012653,2]
[352081908,1738939845351,-609.28,0.00012653,2]
[352081910,1738939845361,-151.0,0.00012653,2]
[352081912,1738939845370,-500.0,0.00012653,2]
[352081914,1738939845379,-151.0,0.00012653,2]
[352081916,1738939845390,-4521.66,0.00012653,2]
[352081917,1738939845399,-504.30609718,0.00012653,2]
[352081918,1738939845409,-500.0,0.00012653,2]
[352081919,1738939845418,-500.0,0.00012653,2]
[352081920,1738939845428,-293.741913,0.00012653,2]
[352081921,1738939845437,-293.741913,0.00012653,2]
[352081922,1738939845446,-293.741913,0.00012653,2]
[352081923,1738939845455,-1030.52,0.00012653,2]
[352081924,1738939845464,-501.89342174,0.00012653,2]
[352081925,1738939845474,-2149.733809,0.00012653,2]
[352081926,1738939845485,-500.0,0.00012653,2]
[352081927,1738939845495,-2149.733809,0.00012653,2]
[352081928,1738939845504,-500.0,0.00012653,2]